bitfinex-derivatives/quotes_ETHF0:USTF0_20250624
["timestamp","ask_amount","ask_price","bid_price","bid_amount"]
[1750762945459,2.02099567,2415.8,2415.7,2.15883]
[1750762948453,1.19365567,2415.8,2415.7,2.15883]
[1750762950465,0.82733,2415.9,2415.8,0.82734]
[1750762950763,1.19524114,2415.9,2415.8,4.60579508]
[1750762952261,2.02255114,2415.9,2415.8,4.60579508]
[1750762953171,1.19524114,2415.9,2415.8,29.83279508]
[1750762954063,2.02255114,2415.9,2415.8,29.83279508]
[1750762954368,1.19524114,2415.9,2415.8,29.83279508]
[1750762955268,0.6914,2416.3,2416.2,0.82721]
[1750762955459,1.19594372,2416.4,2416.3,0.82714]
[1750762955666,1.19594372,2416.4,2416.3,7.81269508]
[1750762955867,1.19594372,2416.4,2416.3,9.20279508]
[1750762956066,0.6594,2416.8,2416.7,0.82703]
[1750762956269,5.42461809,2417.3,2416.7,0.82703]
[1750762956270,0.6594,2417.2,2417.1,0.8269]
[1750762956467,1.85285678,2417.2,2417.1,32.5629]
[1750762956978,0.8268,2417.4,2417.3,0.82683]
[1750762957173,1.19339178,2417.4,2417.3,26.05183]
[1750762958176,3.2078,2417.5,2417.4,0.82679]
[1750762958483,5.22490446,2417.5,2417.4,3.27094508]
[1750762958683,5.22490446,2417.5,2417.4,2.44415508]
[1750762959276,0.6594,2417.7,2417.4,8.95415508]
[1750762959475,0.6594,2417.7,2417.6,3.27088508]
[1750762959778,2.67399952,2417.7,2417.6,2.44415508]
[1750762960080,0.82679,2417.4,2417.3,31.73]
[1750762960281,0.82683,2417.3,2417.2,27.66415508]
[1750762960472,0.82683,2417.3,2417.2,34.17415508]
[1750762960979,0.82683,2417.3,2417.2,2.44415508]
[1750762961180,0.82689,2417.2,2417.1,31.726]
[1750762961478,0.82693,2417.0,2416.9,0.6602]
[1750762961787,0.82697,2416.9,2416.8,3.2078]
[1750762962268,0.82697,2416.9,2416.8,9.7168]
[1750762962472,0.82696,2417.0,2416.8,14.35975508]
[1750762963068,0.82697,2416.9,2416.8,14.35975508]
[1750762963976,0.82697,2416.9,2416.8,13.53275508]
[1750762964380,0.82697,2416.9,2416.8,12.16095508]
[1750762964685,0.82697,2416.9,2416.8,12.98795508]
[1750762965483,0.82697,2416.9,2416.8,12.16095508]
[1750762967077,0.82703,2416.7,2416.6,2.44415508]
[1750762967380,0.82703,2416.7,2416.6,34.16615508]
[1750762968880,0.82703,2416.7,2416.6,34.99322508]
[1750762969184,0.82707,2416.6,2416.5,3.2078]
[1750762969387,0.82707,2416.6,2416.5,34.9238]
[1750762969584,0.82707,2416.6,2416.5,9.7108]
[1750762970885,0.82707,2416.6,2416.5,10.5379]
[1750762971185,0.82707,2416.6,2416.5,11.9236]
[1750762971886,0.8908115,2416.7,2416.6,0.82707]
[1750762972087,0.8908115,2416.7,2416.6,4.65692508]
[1750762972488,0.8908115,2416.7,2416.6,5.36272508]
[1750762973590,0.8908115,2416.7,2416.6,30.57472508]
[1750762973889,0.8908115,2416.7,2416.6,29.74765508]
[1750762974084,0.8908115,2416.7,2416.6,2.44415508]
[1750762974289,0.8908115,2416.7,2416.6,8.94715508]
[1750762974690,0.8908115,2416.7,2416.6,9.77422508]
[1750762974988,0.8908115,2416.7,2416.6,8.94715508]
[1750762975593,0.8271,2416.5,2416.4,3.27127508]
[1750762975892,0.8271,2416.5,2416.4,34.98527508]
[1750762977088,0.0637515,2416.7,2416.6,0.82707]
[1750762977291,0.669,2417.2,2417.1,0.8269]
[1750762977492,0.669,2417.2,2417.1,38.19285508]
[1750762980395,1.49586,2417.2,2417.1,38.19285508]
[1750762981195,0.82685,2417.3,2417.2,0.82684]
[1750762981396,0.82685,2417.3,2417.2,2.15494]
[1750762982191,0.82685,2417.3,2417.2,2.84754]
[1750762984389,0.8906015,2417.3,2417.2,2.84754]
[1750762984599,0.8905815,2417.3,2417.2,2.84754]
[1750762988389,0.8905815,2417.3,2417.2,2.0207]
[1750762988693,0.8905815,2417.3,2417.2,2.84756]
[1750762990103,0.8905815,2417.3,2417.2,0.6926]
[1750762990504,0.8905815,2417.3,2417.2,1.51946]
[1750762990699,0.0637515,2417.3,2417.2,2.83956]
[1750762990896,0.0637515,2417.3,2417.2,6.04736]
[1750762993103,0.8905815,2417.3,2417.2,6.04736]
[1750762993501,0.0637515,2417.3,2417.2,6.04736]
[1750762993700,0.8905815,2417.3,2417.2,6.04736]
[1750762994398,0.0637515,2417.3,2417.2,6.04736]
[1750762994604,0.0637515,2417.3,2417.2,37.75236]
[1750762996508,0.0637515,2417.3,2417.2,38.85236]
[1750762997916,0.82666,2417.9,2417.8,0.82664]
[1750762998102,0.82666,2417.9,2417.8,3.27079508]
[1750762998302,2.01518882,2417.9,2417.8,3.27079508]
[1750762998703,0.82666,2417.8,2417.7,32.52967]
[1750762998912,2.06657,2417.9,2417.7,25.201]
[1750762999103,0.82669,2417.7,2417.6,6.501]
[1750762999608,1.53409,2417.7,2417.6,6.501]
[1750762999808,0.82676,2417.5,2417.4,3.80165508]
[1750763000110,0.82676,2417.5,2417.4,35.50065508]
[1750763000605,0.82679,2417.4,2417.3,2.44415508]
[1750763000820,0.82679,2417.4,2417.3,34.14215508]
[1750763001309,0.82679,2417.4,2417.3,34.96898508]
[1750763002203,0.82679,2417.4,2417.3,34.14215508]
[1750763002599,0.82679,2417.4,2417.3,34.96898508]
[1750763002809,0.82679,2417.4,2417.3,2.44415508]
[1750763003112,0.82686,2417.2,2417.1,4.62855508]
[1750763004110,0.82686,2417.2,2417.1,3.80165508]
[1750763005417,0.82689,2417.2,2417.0,34.96805508]
[1750763005609,1.4914,2417.1,2417.0,2.44415508]
[1750763005915,7.12734296,2417.1,2416.7,1.3383]
[1750763006106,0.827,2416.8,2416.7,28.98145508]
[1750763006302,5.93957,2417.1,2416.6,3.2078]
[1750763006303,0.82703,2416.7,2416.6,3.2078]
[1750763006508,0.8271,2416.5,2416.4,2.44415508]
[1750763007616,0.8271,2416.5,2416.4,3.27129508]
[1750763007809,1.49159,2416.6,2416.4,3.27129508]
[1750763008415,1.49159,2416.6,2416.5,0.8271]
[1750763008912,0.8271,2416.5,2416.4,4.59286508]
[1750763009110,0.6645,2416.6,2416.4,3.76575508]
[1750763009411,0.8271,2416.5,2416.4,4.59286508]
[1750763009808,1.49159,2416.6,2416.4,3.76575508]
[1750763010015,1.49159,2416.6,2416.5,0.8271]
[1750763010206,0.8271,2416.5,2416.4,4.59286508]
[1750763010502,1.49159,2416.6,2416.5,0.8271]
[1750763010699,0.8271,2416.5,2416.4,4.59286508]
[1750763011412,1.4916,2416.6,2416.4,4.59286508]
[1750763012314,1.49159,2416.6,2416.4,3.76575508]
[1750763012612,1.49159,2416.6,2416.5,0.8271]
[1750763013317,0.82709,2416.6,2416.5,0.8271]
[1750763013711,0.82709,2416.6,2416.5,1.5429]
[1750763015916,0.8908415,2416.6,2416.5,1.5429]
[1750763016318,0.8908415,2416.6,2416.5,0.7158]
[1750763016519,0.8908415,2416.6,2416.5,1.5429]
[1750763016815,0.8271,2416.5,2416.4,4.59286508]
[1750763017418,0.82709,2416.6,2416.5,0.82708]
[1750763018925,1.51086,2416.7,2416.6,0.82707]
[1750763019413,1.51086,2416.7,2416.6,3.27122508]
[1750763019613,1.51083,2416.7,2416.6,3.27122508]
[1750763020423,3.694,2416.9,2416.8,0.827]
[1750763020631,3.694,2416.9,2416.8,3.27115508]
[1750763021032,2.867,2416.9,2416.8,3.27115508]
[1750763021232,2.867,2416.9,2416.8,4.64755508]
[1750763021937,2.867,2416.9,2416.8,2.2034]
[1750763022138,0.82687,2417.2,2417.1,0.8269]
[1750763022336,0.7203,2417.3,2417.2,3.27101508]
[1750763022641,3.2078,2417.4,2417.3,0.82683]
[1750763022836,4.3940825,2417.4,2417.3,2.19303]
[1750763023027,4.3940825,2417.4,2417.2,2.44415508]
[1750763023028,4.3940825,2417.4,2417.1,0.82688]
[1750763023233,0.82686,2417.2,2417.1,0.82688]
[1750763023432,0.82692,2417.1,2417.0,0.82692]
[1750763023641,1.52562,2417.1,2417.0,0.82692]
[1750763024132,0.6987,2417.1,2417.0,0.82692]
[1750763024338,1.5256,2417.1,2417.0,0.82692]
[1750763024537,1.5256,2417.1,2417.0,2.19312]
[1750763025039,0.82693,2417.0,2416.9,5.65195508]
[1750763025336,1.18649931,2417.0,2416.4,6.5]
[1750763025542,0.8271,2416.6,2416.5,10.46501508]
[1750763026243,0.0637515,2416.6,2416.5,10.46501508]
[1750763026643,0.8908215,2416.6,2416.5,10.46501508]
[1750763027242,0.0637515,2416.6,2416.5,10.46501508]
[1750763028447,0.8908215,2416.6,2416.5,10.46501508]
[1750763028650,0.8908215,2416.6,2416.5,9.63795508]
[1750763029343,0.8908215,2416.6,2416.5,3.13795508]
[1750763029849,0.8908215,2416.6,2416.5,0.6938]
[1750763030043,0.8908215,2416.6,2416.5,1.5209]
[1750763030250,0.8908215,2416.6,2416.5,2.9528]
[1750763030849,0.8908215,2416.6,2416.5,2.1257]
[1750763031050,0.8271,2416.5,2416.4,9.76826508]
[1750763031241,1.5463,2416.5,2416.4,9.76826508]
[1750763031643,1.5463,2416.5,2416.4,11.16776508]
[1750763032244,0.0637515,2416.6,2416.5,0.8271]
[1750763032443,2.07997393,2416.6,2416.5,2.2266]
[1750763032851,1.25290393,2416.6,2416.5,2.2266]
[1750763033145,0.0637515,2416.6,2416.5,2.2266]
[1750763034250,0.827,2416.8,2416.7,0.82703]
[1750763034551,2.01675312,2416.8,2416.7,3.27118508]
[1750763035452,2.01675312,2416.8,2416.7,2.44415508]
[1750763036952,0.82707,2416.6,2416.5,3.84365508]
[1750763037145,1.18975312,2416.7,2416.5,9.76823508]
[1750763037454,0.8908215,2416.6,2416.5,9.76823508]
[1750763037658,2.08057462,2416.6,2416.5,9.76823508]
[1750763039254,1.25350462,2416.6,2416.5,9.76823508]
[1750763039453,1.25350462,2416.6,2416.0,3.2078]
[1750763039653,2.71558312,2416.5,2416.4,0.82714]
[1750763040353,1.88845312,2416.5,2416.4,3.27129508]
[1750763040652,0.72975312,2416.5,2416.4,3.27129508]
[1750763041657,0.8271,2416.6,2416.5,0.82708]
[1750763041862,0.8271,2416.6,2416.5,5.32063508]
[1750763045450,0.8908515,2416.6,2416.5,5.32063508]
[1750763045955,0.0637515,2416.6,2416.5,5.32063508]
[1750763046656,0.8908215,2416.6,2416.5,0.82708]
[1750763046857,0.8908215,2416.6,2416.4,0.82711]
[1750763046858,0.8271,2416.5,2416.4,0.82711]
[1750763047054,1.4893,2416.5,2416.4,7.32511]
[1750763047253,1.4893,2416.5,2416.3,4.03496]
[1750763047254,0.82714,2416.4,2416.3,4.03496]
[1750763047459,0.82717,2416.3,2416.2,7.32518]
[1750763048358,0.82716,2416.4,2416.3,0.82717]
[1750763049458,0.82719,2416.3,2416.2,0.82717]
[1750763050157,0.82723,2416.2,2416.1,0.82722]
[1750763050548,0.82719,2416.3,2416.2,0.82717]
[1750763051455,3.2078,2416.3,2415.5,3.54219027]
[1750763051659,0.82733,2415.9,2415.8,0.82731]
[1750763052160,0.82734,2415.8,2415.7,0.82735]
[1750763052657,0.7243,2415.9,2415.8,0.82734]
[1750763052658,1.55163,2415.9,2415.8,0.82734]
[1750763052852,2.73826126,2415.9,2415.8,0.82734]
[1750763053555,2.73826126,2415.9,2415.8,3.97469508]
[1750763054268,2.73826126,2415.9,2415.8,0.7032]
[1750763054564,0.82734,2415.8,2415.7,2.23485]
[1750763055856,0.82734,2415.8,2415.7,2.93805]
[1750763057861,0.82734,2415.8,2415.7,0.82735]
[1750763058158,0.82741,2415.7,2415.6,0.82738]
[1750763058560,0.82737,2415.8,2415.7,0.82735]
[1750763059861,0.7243,2415.9,2415.8,0.82734]
[1750763060464,0.7243,2415.9,2415.8,1.50904]
[1750763061062,1.55164,2415.9,2415.8,1.50904]
[1750763062169,0.82728,2416.0,2415.9,0.82731]
[1750763062359,0.82727,2416.1,2416.0,0.82725]
[1750763062670,2.01245595,2416.1,2416.0,2.27625]
[1750763064666,1.18518595,2416.1,2416.0,2.27625]
[1750763064859,2.867,2416.5,2416.4,0.82714]
[1750763065064,0.82706,2416.7,2416.6,0.82703]
[1750763065261,2.01247442,2416.7,2416.6,3.27118508]
[1750763065674,2.01247442,2416.7,2416.6,0.82703]
[1750763066171,1.18541442,2416.7,2416.6,0.82703]
[1750763066473,2.70164442,2416.7,2416.6,0.82703]
[1750763072372,0.82707,2416.6,2416.5,2.82408]
[1750763073871,0.82707,2416.6,2416.5,0.6653]
[1750763074068,0.8271,2416.5,2416.4,10.46538508]
[1750763074468,0.8271,2416.5,2416.4,9.63825508]
[1750763075070,0.8271,2416.5,2416.4,10.46539508]
[1750763075271,0.8271,2416.5,2416.4,11.04785508]
[1750763075572,0.8271,2416.5,2416.4,11.87499508]
[1750763075970,0.8271,2416.5,2416.4,11.04785508]
[1750763076174,0.8271,2416.5,2416.4,11.87499508]
[1750763077578,0.8271,2416.5,2416.4,11.04785508]
[1750763078279,0.8271,2416.5,2416.4,11.87499508]
[1750763078475,0.8271,2416.5,2416.4,2.1087]
[1750763079480,0.8271,2416.5,2416.4,2.93584]
[1750763083479,0.8271,2416.6,2416.4,2.1087]
[1750763083677,0.8271,2416.6,2416.5,4.68841508]
[1750763085388,0.8271,2416.6,2416.5,3.86135508]
[1750763086481,0.8271,2416.6,2416.5,4.68845508]
[1750763087886,0.8271,2416.6,2416.5,3.86135508]
[1750763088480,2.47566374,2417.2,2416.5,11.30551016]
[1750763088680,0.7227,2417.9,2417.3,2.06708]
[1750763088989,1.54932,2417.9,2417.8,2.44415508]
[1750763089187,2.72426192,2417.9,2417.8,2.44415508]
[1750763092993,0.82676,2417.5,2417.4,6.00314508]
[1750763093190,0.82676,2417.5,2417.4,12.55214508]
[1750763093585,0.82675,2417.6,2417.5,0.82673]
[1750763093892,0.82675,2417.6,2417.5,3.27088508]
[1750763095391,0.82675,2417.6,2417.5,4.61808508]
[1750763099402,0.82676,2417.5,2417.3,3.2078]
[1750763099593,0.82686,2417.2,2417.1,48.3426]
[1750763099794,0.82703,2416.7,2416.6,6.548]
[1750763100001,0.8271,2416.5,2416.4,3.13385508]
[1750763100204,0.82717,2416.3,2416.2,3.27134508]
[1750763100500,0.82717,2416.4,2416.3,0.82715]
[1750763100704,0.82712,2416.5,2416.4,0.8271]
[1750763100999,0.82712,2416.5,2416.4,3.27125508]
[1750763101297,0.0637515,2416.6,2416.4,3.27125508]
[1750763101298,0.82709,2416.6,2416.5,0.82708]
[1750763101504,0.82708,2416.6,2416.5,0.82709]
[1750763101699,0.82709,2416.6,2416.5,0.82709]
[1750763102099,0.82706,2416.7,2416.6,0.82706]
[1750763102804,0.8271,2416.6,2416.5,0.82708]
[1750763103006,0.8271,2416.5,2416.4,3.27126508]
[1750763103211,0.8271,2416.5,2416.4,0.82711]
[1750763104205,0.82714,2416.4,2416.3,7.37614]
[1750763104506,0.82716,2416.4,2416.3,0.82715]
[1750763104806,0.82713,2416.5,2416.4,0.82712]
[1750763105009,0.8271,2416.6,2416.5,0.82709]
[1750763105711,0.8271,2416.5,2416.4,3.27126508]
[1750763105908,0.82717,2416.3,2416.2,8.99415508]
[1750763106205,0.82724,2416.1,2416.0,2.44415508]
[1750763106798,0.82724,2416.1,2416.0,3.27142508]
[1750763107200,0.82724,2416.1,2416.0,2.44415508]
[1750763107410,0.82724,2416.1,2416.0,3.27142508]
[1750763107816,0.82724,2416.1,2416.0,2.44415508]
[1750763108013,0.82731,2415.9,2415.8,2.44415508]
[1750763108207,1.5343,2416.0,2415.8,8.99415508]
[1750763108405,1.5343,2416.0,2415.9,0.82731]
[1750763109002,0.82721,2416.2,2416.1,0.82723]
[1750763109208,0.82721,2416.2,2416.1,2.44415508]
[1750763109714,0.82721,2416.2,2416.1,3.27136508]
[1750763109919,0.82719,2416.3,2416.2,0.8272]
[1750763110214,0.6699,2416.4,2415.8,3.2078]
[1750763110511,0.82725,2416.1,2416.0,2.44415508]
[1750763110712,0.82725,2416.1,2416.0,3.27142508]
[1750763111012,0.6699,2416.4,2416.2,0.82718]
[1750763111312,0.82717,2416.3,2416.2,0.82718]
[1750763111914,0.82717,2416.3,2416.0,3.931]
[1750763111915,0.82723,2416.2,2416.1,0.82722]
[1750763112115,0.82723,2416.2,2416.1,2.18372]
[1750763112308,0.82724,2416.1,2416.0,3.27141508]
[1750763112707,0.82724,2416.1,2416.0,2.44415508]
[1750763113214,0.82724,2416.1,2416.0,3.27142508]
[1750763113712,2.06795,2416.3,2415.9,6.551]
[1750763113713,0.82727,2416.0,2415.9,6.551]
[1750763114715,0.82731,2415.9,2415.8,0.82733]
[1750763115911,0.82731,2415.9,2415.8,2.23923]
[1750763120415,0.8273,2416.0,2415.9,0.82726]
[1750763120617,0.8273,2416.0,2415.9,3.27141508]
[1750763120819,0.82727,2416.1,2416.0,0.82723]
[1750763121010,0.82727,2416.1,2416.0,4.67788508]
[1750763124525,0.82724,2416.2,2416.1,0.82719]
[1750763124722,0.82724,2416.2,2416.1,4.70144508]
[1750763127617,0.82718,2416.4,2416.3,0.82714]
[1750763127923,0.82717,2416.3,2416.2,0.7255]
[1750763128126,0.82724,2416.1,2416.0,4.03504]
[1750763128313,0.82724,2416.1,2416.0,5.48434]
[1750763128728,0.82724,2416.1,2416.0,2.27654]
[1750763129119,0.82727,2416.0,2415.9,1.3946]
[1750763129425,0.82738,2415.8,2415.7,7.37136]
[1750763129721,0.82738,2415.8,2415.7,9.41126]
[1750763130029,0.82738,2415.8,2415.7,12.61908]
[1750763131422,0.82738,2415.8,2415.7,9.41128]
[1750763131627,0.82744,2415.5,2415.4,3.2078]
[1750763131813,3.23311601,2415.8,2415.2,2.0237]
[1750763131814,0.82751,2415.3,2415.2,2.0237]
[1750763132019,0.82751,2415.3,2415.2,0.6553]
[1750763132319,0.82751,2415.3,2415.2,3.09945508]
[1750763132520,0.82751,2415.3,2415.2,4.48335508]
[1750763132719,0.82747,2415.5,2415.4,0.82745]
[1750763133038,0.82747,2415.5,2415.4,3.27160508]
[1750763133418,0.82747,2415.5,2415.4,4.65550508]
[1750763133922,0.82747,2415.5,2415.4,3.82805508]
[1750763134726,0.82747,2415.5,2415.4,1.3839]
[1750763135119,1.99158778,2415.5,2415.4,1.3839]
[1750763136527,1.99158778,2415.5,2415.2,8.02683]
[1750763136528,0.82751,2415.3,2415.2,3.09945508]
[1750763136730,0.82751,2415.3,2415.2,9.64345508]
[1750763136924,0.82751,2415.3,2415.2,3.09945508]
[1750763138132,0.82751,2415.3,2415.2,3.92700508]
[1750763139221,0.82751,2415.3,2415.2,5.36250508]
[1750763142833,1.49291,2415.4,2415.3,0.82751]
[1750763143034,1.49291,2415.4,2415.3,2.14631]
[1750763143629,0.82747,2415.5,2415.4,0.82743]
[1750763143936,4.03516,2415.8,2415.7,0.82738]
[1750763144133,5.19802915,2415.8,2415.7,3.27153508]
[1750763144334,4.03516,2415.8,2415.7,3.27153508]
[1750763145840,0.82736,2415.8,2415.7,3.27153508]
[1750763146837,1.99024893,2415.8,2415.7,3.27153508]
[1750763147745,0.82736,2415.8,2415.7,3.27153508]
[1750763149443,0.82736,2415.8,2415.7,2.44415508]
[1750763149650,1.98997862,2415.8,2415.7,2.44415508]
[1750763149940,1.98997862,2415.8,2415.7,3.27153508]
[1750763150344,0.82736,2415.8,2415.7,3.27153508]
[1750763151240,1.9895077,2415.8,2415.7,3.27153508]
[1750763151846,0.82736,2415.8,2415.7,3.27153508]
[1750763152036,0.82733,2416.0,2415.9,0.82727]
[1750763152235,1.98903616,2416.0,2415.9,0.82727]
[1750763152434,1.98897616,2416.0,2415.9,0.82727]
[1750763152640,0.8272,2416.3,2416.2,0.8272]
[1750763152842,1.16210438,2416.4,2416.3,0.82717]
[1750763153036,3.2078,2416.6,2416.5,0.8271]
[1750763153236,3.2078,2416.6,2416.5,3.27125508]
[1750763154731,1.49232,2416.8,2416.7,0.82703]
[1750763154938,2.65298675,2416.8,2416.7,0.82703]
[1750763155845,0.82703,2416.7,2416.6,2.21354]
[1750763156941,1.49233,2416.8,2416.7,0.82703]
[1750763157143,2.65218521,2416.8,2416.7,0.82703]
[1750763158042,0.82703,2416.7,2416.6,2.21355]
[1750763162149,0.82713,2416.5,2416.4,0.82709]
[1750763162448,0.8272,2416.3,2416.2,7.35518]
[1750763162650,2.7815,2416.4,2416.1,6.528]
[1750763162852,0.8272,2416.2,2416.1,6.528]
[1750763163252,0.82727,2416.0,2415.9,8.03269]
[1750763163453,0.82731,2415.9,2415.8,0.82731]
[1750763163753,0.82738,2415.7,2415.6,8.6436]
[1750763163955,0.82738,2415.7,2415.6,8.79361]
[1750763164258,0.82738,2415.7,2415.6,7.9662]
[1750763164446,0.82738,2415.7,2415.6,8.79361]
[1750763165055,0.82738,2415.7,2415.6,2.26561]
[1750763165844,0.82738,2415.7,2415.6,1.4382]
[1750763166046,0.82748,2415.4,2415.3,0.6774]
[1750763166254,0.82751,2415.4,2415.3,0.82751]
[1750763166547,0.82755,2415.2,2415.1,9.80070508]
[1750763166953,2.06862,2415.5,2415.0,3.79735508]
[1750763167156,0.82749,2415.4,2415.3,0.8275]
[1750763168154,0.8275,2415.4,2415.3,0.82751]
[1750763168353,0.82747,2415.5,2415.4,0.82748]
[1750763168950,0.82749,2415.4,2415.3,0.82749]
[1750763169151,0.82751,2415.3,2415.2,3.27168508]
[1750763169757,0.8275,2415.4,2415.3,0.82751]
[1750763170355,0.82751,2415.3,2415.2,3.27168508]
[1750763171961,0.82751,2415.4,2415.3,0.8275]
[1750763172153,0.82748,2415.4,2415.3,0.8275]
[1750763172353,0.82748,2415.4,2415.3,2.1423]
[1750763172657,0.7136,2415.9,2415.4,2.0687]
[1750763172862,0.7136,2415.9,2415.6,3.27153508]
[1750763172863,0.82739,2415.7,2415.6,3.27153508]
[1750763173059,0.82737,2415.8,2415.7,0.82736]
[1750763173253,1.54093,2415.9,2415.8,0.82734]
[1750763173557,0.82734,2415.8,2415.7,2.14215]
[1750763174552,0.82734,2415.8,2415.7,1.3148]
[1750763174764,0.82738,2415.7,2415.6,3.11085508]
[1750763174948,0.82738,2415.7,2415.6,0.6667]
[1750763175660,0.82738,2415.7,2415.6,1.49411]
[1750763177061,0.82736,2415.8,2415.7,0.82734]
[1750763177256,0.7136,2415.9,2415.8,0.82734]
[1750763177257,1.54093,2415.9,2415.8,0.82734]
[1750763177462,3.2078,2416.0,2415.9,0.82731]
[1750763177657,3.2078,2416.0,2415.9,2.23851]
[1750763177858,0.82725,2416.2,2416.1,0.82722]
[1750763178462,0.82725,2416.2,2416.1,2.14282]
[1750763180160,0.82725,2416.2,2416.1,1.3156]
[1750763180366,0.82725,2416.2,2416.1,2.14284]
[1750763183368,0.82725,2416.2,2416.1,1.3156]
[1750763183968,0.82725,2416.2,2416.1,2.14284]
[1750763184266,0.82725,2416.2,2416.1,1.3156]
[1750763184965,0.82725,2416.2,2416.1,2.14284]
[1750763185970,2.06776,2416.5,2416.1,1.9915]
[1750763186270,0.8272,2416.3,2416.2,0.82718]
[1750763187763,1.98892548,2416.3,2416.2,0.82718]
[1750763188559,1.98892548,2416.3,2416.2,2.18948]
[1750763188967,1.98892548,2416.3,2416.2,1.3623]
[1750763189166,0.8272,2416.2,2416.1,1.50314]
[1750763189472,1.98892548,2416.2,2416.1,2.86544]
[1750763190270,1.98958004,2416.2,2416.1,2.86544]
[1750763190769,0.8272,2416.2,2416.1,2.86544]
[1750763191171,0.82718,2416.4,2416.3,0.82714]
[1750763191367,1.98993226,2416.5,2416.4,0.82714]
[1750763191564,1.98994673,2416.5,2416.4,0.82714]
[1750763192164,1.98994673,2416.5,2416.4,2.27504]
[1750763192675,1.16280673,2416.5,2416.4,2.27504]
[1750763192870,0.82701,2416.8,2416.7,0.82703]
[1750763193067,1.99027171,2416.8,2416.7,0.82703]
[1750763193268,0.82707,2416.7,2416.6,0.82703]
[1750763193467,1.99033171,2416.7,2416.6,2.20253]
[1750763194475,1.99033171,2416.7,2416.6,2.20257]
[1750763195976,1.98968732,2416.7,2416.6,2.20257]
[1750763197360,0.82707,2416.7,2416.6,2.20257]
[1750763198576,0.82714,2416.4,2416.3,0.687]
[1750763198772,2.06759,2416.7,2415.9,0.8273]
[1750763198773,0.82729,2416.0,2415.9,0.8273]
[1750763198976,2.06785,2416.4,2415.8,14.24429508]
[1750763199274,0.82724,2416.1,2416.0,2.44415508]
[1750763199475,0.82724,2416.1,2416.0,3.84575508]
[1750763200587,0.82724,2416.1,2416.0,4.67302508]
[1750763201078,0.82724,2416.1,2416.0,3.84575508]
[1750763201373,2.0682,2416.0,2415.1,0.82757]
[1750763201575,0.82763,2415.0,2414.8,3.27182508]
[1750763201875,0.82763,2415.0,2414.8,2.44415508]
[1750763202075,4.03536,2415.2,2414.9,0.82764]
[1750763202274,4.03536,2415.2,2415.1,2.44415508]
[1750763203068,4.03536,2415.2,2415.1,3.27173508]
[1750763203069,3.2078,2415.2,2415.1,3.27173508]
[1750763203470,4.03535,2415.2,2415.1,3.27173508]
[1750763203676,3.2078,2415.2,2415.1,3.27173508]
[1750763203879,3.2078,2415.8,2415.1,7.44415508]
[1750763204176,0.82739,2415.7,2415.5,0.82743]
[1750763204475,0.82739,2415.7,2415.6,1.4267]
[1750763204675,0.82739,2415.7,2415.6,2.7541]
[1750763204978,0.82739,2415.7,2415.6,3.58151]
[1750763205173,4.03515,2415.8,2415.7,0.82738]
[1750763205378,11.80058,2416.5,2416.0,0.82726]
[1750763205677,0.82722,2416.2,2416.0,3.27141508]
[1750763205871,0.82722,2416.2,2416.1,0.6802]
[1750763206075,1.99085788,2416.2,2416.1,0.6802]
[1750763207073,1.16363788,2416.2,2416.1,0.6802]
[1750763207272,0.6716,2416.4,2416.2,0.8272]
[1750763207572,1.16394379,2416.3,2416.2,0.8272]
[1750763207772,1.16394379,2416.3,2416.2,1.5168]
[1750763208277,1.99111379,2416.3,2416.2,0.6896]
[1750763208480,0.8273,2416.0,2415.8,1.4353]
[1750763208882,0.82731,2415.9,2415.8,0.82734]
[1750763209184,0.82732,2415.9,2415.8,0.82731]
[1750763209384,0.82733,2415.9,2415.8,0.82732]
[1750763209874,0.82734,2415.8,2415.7,8.73085]
[1750763210476,0.82733,2415.9,2415.8,0.82732]
[1750763210877,3.2078,2416.2,2416.1,0.82724]
[1750763211076,1.99045473,2416.2,2416.1,0.82724]
[1750763212975,1.52365,2416.4,2416.1,0.82724]
[1750763213287,1.52365,2416.4,2416.3,0.82717]
[1750763213482,2.68693618,2416.4,2416.3,0.82717]
[1750763213884,0.8272,2416.3,2416.2,0.82718]
[1750763214080,1.99048618,2416.3,2416.2,0.82718]
[1750763216585,0.8272,2416.3,2416.2,0.82718]
[1750763216792,0.6965,2416.4,2416.3,0.82717]
[1750763216991,1.86363543,2416.4,2416.3,0.82717]
[1750763217193,6.0748,2416.5,2416.4,0.82714]
[1750763217493,4.37502586,2416.5,2416.4,0.82714]
[1750763217792,4.73903,2416.8,2416.7,0.82703]
[1750763217994,0.82708,2416.7,2416.6,0.82704]
[1750763218182,1.99425991,2416.7,2416.6,0.82704]
[1750763219496,0.82713,2416.5,2416.4,0.82709]
[1750763219887,1.99430991,2416.5,2416.4,0.82709]
[1750763220190,1.16717991,2416.5,2416.4,0.82709]
[1750763220582,0.82709,2416.6,2416.5,0.8271]
[1750763221095,1.99373387,2416.6,2416.5,0.8271]
[1750763221294,1.16664387,2416.6,2416.5,0.8271]
[1750763221484,3.912,2416.8,2416.7,0.82703]
[1750763221687,4.37447214,2416.8,2416.7,0.82703]
[1750763221990,0.6946,2417.1,2417.0,0.82693]
[1750763222305,1.86137381,2417.1,2417.0,0.82693]
[1750763223499,2.68827381,2417.1,2417.0,0.82693]
[1750763224594,1.86137381,2417.1,2417.0,0.82693]
[1750763224792,3.2078,2417.5,2417.1,0.8269]
[1750763224994,3.2078,2417.5,2417.3,0.82683]
[1750763224995,0.82683,2417.4,2417.3,0.82683]
[1750763234094,0.82683,2417.4,2417.1,6.606]
[1750763234095,0.82688,2417.2,2417.1,0.82686]
[1750763235093,0.8269,2417.1,2416.9,3.2078]
[1750763235298,0.8269,2417.1,2416.8,3.44654]
[1750763235299,0.82697,2416.9,2416.8,2.20608]
[1750763235493,0.82697,2416.9,2416.8,1.3791]
[1750763235693,1.53887,2416.9,2416.8,1.3791]
[1750763236099,0.827,2416.8,2416.7,7.43201]